Cogmind - Beta 14 @@@ ROGUE MODE // 2024.08.25 @ 22:28:49 Player: Briefgarde Result: Self-destructed Performance ------------- Evolutions (3) 1500 Regions Visited (7) 1400 Robots Destroyed (47) 235 Value Destroyed (1549) 1549 Prototype IDs (8) 160 Alien Tech Used (0) 0 Bonus (409) 409 TOTAL SCORE: 5253 Bonus ------- High Alert Combat Kills 51 Follower Combat Kills 68 Aligned with FarCom 300 Friendly Fire -10 Cogmind --------- Core Integrity 348/700 Matter 300/300 Energy 73/100 System Corruption 9% Temperature Warm (119) Movement Flying (26) Location -7/Storage Parts ------- > --- POWER (1) -------- (None) > --- PROPULSION (4) --- Improved VTOL Module Improved VTOL Module Improved Cesium-ion Thruster Improved Cesium-ion Thruster > --- UTILITY (6) ------ Advanced Terrain Scan Processor Improved Light Armor Plating Improved Light Armor Plating Hacking Suite System Shield > --- WEAPON (2) ------- Cooled Particle Cannon > --- INVENTORY (5) ---- Gravmag System Advanced ECM Suite Hardlight Generator System Shield Shock Rifle Peak State ------------ > --- POWER ------------ Micro Nuclear Core > --- PROPULSION ------- Improved VTOL Module Improved VTOL Module Improved Cesium-ion Thruster Improved Cesium-ion Thruster > --- UTILITY ---------- Improved Signal Interpreter Advanced Terrain Scan Processor Transmission Jammer Hacking Suite System Shield Trap Reconfigurator > --- WEAPON ----------- Cooled Particle Cannon Ripper > --- INVENTORY -------- Improved Cesium-ion Thruster Advanced ECM Suite Improved Light Armor Plating Hardlight Generator System Shield [Rating: 58] Favorites ----------- Power Ion Engine Engine Ion Engine Power Core Light Nuclear Core Propulsion Light Treads Treads Light Treads Wheel Compact Wheel Hover Unit Aerolev Unit Flight Unit Improved VTOL Module Utility Medium Storage Unit Device Sensor Array Storage Medium Storage Unit Processor Improved Signal Interpreter Hackware System Shield Protection Improved Light Armor Plating Weapon Small Laser Energy Gun Small Laser Energy Cannon Cooled Particle Cannon Ballistic Gun Assault Rifle Ballistic Cannon Light Cannon Launcher Rocket Launcher Slashing Weapon Ripper Build | -11 -10 -10 -10 -9 -8 -7 -7 ------- Run | Yrd Mat Min Exi Min Mat Fac Sto Slots Evolved 6 | . . . . . 4 2 . Power . | . . . . . . . . Propulsion 2 | . . . . . 1 1 . Utility 4 | . . . . . 3 1 . Weapon . | . . . . . . . . Parts Attached 80 | 6 7 4 6 1 29 14 13 Power 9 | 1 1 1 . . 1 2 3 Engine 3 | 1 . 1 . . . . 1 Core 6 | . 1 . . . 1 2 2 Reactor . | . . . . . . . . Propulsion 17 | 2 . 1 . . 9 4 1 Treads 3 | 1 . 1 . . 1 . . Leg . | . . . . . . . . Wheel 3 | 1 . . . . 2 . . Hover 1 | . . . . . 1 . . Flight 10 | . . . . . 5 4 1 Utility 34 | 1 4 . 3 . 11 7 8 Device 18 | . 1 . 2 . 6 3 6 Storage 4 | 1 2 . 1 . . . . Processor 6 | . 1 . . . 4 1 . Hackware 3 | . . . . . . 3 . Protection 3 | . . . . . 1 . 2 Artifact . | . . . . . . . . Weapon 20 | 2 2 2 3 1 8 1 1 Energy Gun 7 | . 2 . 1 . 4 . . Energy Cannon 1 | . . . . . . . 1 Ballistic Gun 4 | 2 . . 1 . 1 . . Ballistic Cannon 3 | . . 1 1 . 1 . . Launcher 3 | . . 1 . 1 1 . . Special Weapon . | . . . . . . . . Impact Weapon . | . . . . . . . . Slashing Weapon 2 | . . . . . 1 1 . Piercing Weapon . | . . . . . . . . Special Melee Weapon . | . . . . . . . . Unidentified Prototypes 8 | . . . 3 . 2 1 2 Parts Lost 15 | . . 3 . . 3 1 8 Power 3 | . . 1 . . . . 2 Propulsion 3 | . . 1 . . 1 . 1 Utility 5 | . . . . . . 1 4 Weapon 4 | . . 1 . . 2 . 1 Highest Loss Streak 2 | . . 2 . . 2 1 2 To Critical Strikes . | . . . . . . . . Average Slot Usage (%) 97 | . 99 98 97 100 96 99 91 Engine 6 | . 4 8 14 14 5 . . Core 4 | . 9 5 . . 3 7 6 Treads 8 | . 14 13 14 14 5 . . Wheel 9 | . 14 14 14 14 10 . . Flight 10 | . . . . . 10 30 30 Device 13 | . 8 14 12 14 16 15 12 Storage 8 | . 14 14 14 14 6 . . Processor 6 | . 4 . . . 17 15 9 Hackware 4 | . . . . . . 14 15 Protection 1 | . . . . . 1 . 6 Energy Gun 9 | . 7 17 13 5 10 7 . Ballistic Gun 2 | . 20 . . . . . . Ballistic Cannon 5 | . . 8 13 14 1 . . Launcher 1 | . . . . 8 1 . . Slashing Weapon 1 | . . . . . 3 7 2 Peak Build Rating 58 | 6 10 11 21 10 42 55 58 Average Rating 23 | 4 8 8 8 9 26 49 52 On Entrance 17 | . 6 10 8 9 10 42 52 Naked Turns . | . . . . . . . . Heaviest Build 30 | 14 30 21 20 23 25 14 22 Greatest Support 26 | 20 20 20 20 20 26 22 22 Greatest Overweight (x) 2 | . 1 1 . 1 2 . 1 Average Overweight (x) . | . . . . . . . . Largest Inventory Capacity 15 | 8 15 10 10 10 10 5 5 Average Capacity 8 | 7 13 10 10 10 8 5 5 Most Carried 10 | 6 9 10 10 10 10 5 5 Average Carried 7 | 2 7 9 9 10 7 4 3 Final Capacity 10 | 8 10 10 10 10 5 5 5 Final Carried 10 | 6 9 10 10 10 5 5 5 Class Distribution -------------------- 45% | Mutant 19% | Skirmisher 13% | Hacker-Scout 12% | Hacker-Sprinter 3% | Hacker-Ninja 3% | Scout Dominant Class ---------------- Mutant | -10/Materials Mutant | -10/Mines Mutant | -10/Exiles Skirmisher | -9/Mines Skirmisher | -8/Materials Hacker-Scout | -7/Factory Hacker-Sprinter | -7/Storage Resources | -11 -10 -10 -10 -9 -8 -7 -7 ----------- Run | Yrd Mat Min Exi Min Mat Fac Sto Matter Collected 1418 | 210 257 158 . 34 292 194 273 Remotely . | . . . . . . . . Salvage Created 1764 | . 365 164 . 30 188 292 725 Parts 109 | . 20 9 . 6 11 29 34 Haulers Intercepted 4 | . 1 . . . . 2 1 Recyclers Shooed . | . . . . . . . . Parts Field Recycled . | . . . . . . . . Retrieved Matter . | . . . . . . . . Parts Self-Destructed . | . . . . . . . . Prevented . | . . . . . . . . Kills | -11 -10 -10 -10 -9 -8 -7 -7 ------- Run | Yrd Mat Min Exi Min Mat Fac Sto Combat Hostiles Destroyed 36 | . 7 4 . 3 9 2 11 Melee 6 | . . . . . . 2 4 Guns 16 | . 7 2 . 1 6 . . Cannons 12 | . . 1 . 2 2 . 7 AOE 2 | . . 1 . . 1 . . Classes Destroyed 10 | . 3 . . 1 1 2 3 Worker 2 | . . . . . 1 1 . Builder 2 | . . . . . . 2 . Hauler 4 | . 1 . . . . 2 1 Recycler 1 | . . . . . . . 1 Watcher 2 | . 1 . . . . 1 . Swarmer 6 | . . . . 3 3 . . Grunt 22 | . 7 4 . . 6 . 5 Brawler 1 | . . . . . . . 1 Sentry 3 | . . . . . . . 3 Programmer 4 | . . . . . . 2 2 Best Kill Streak 4 | . 3 2 . 2 4 4 2 Combat Bots Only 4 | . 2 2 . 2 4 1 2 Max Kills in Single Turn 2 | . 1 1 . 2 2 1 1 Gunslinging . | . . . . . . . . Exploded 1 | . . 1 . . 1 . . Melee 1 | . . . . . . 1 1 Uniques/NPCs Destroyed . | . . . . . . . . Combat | -11 -10 -10 -10 -9 -8 -7 -7 -------- Run | Yrd Mat Min Exi Min Mat Fac Sto Hostile Shots Fired 270 | . 47 23 . 5 54 15 126 Missed 85 | . 10 4 . 1 19 8 43 Damage Taken 2562 | . 526 303 . 29 529 70 1105 Core 618 | . 135 55 . . 76 11 341 Absorbed by Shields 67 | . . . . . . . 67 Redirected to Shielding 43 | . . . . . 43 . . Core Remaining (%) 70 | 100 . . . 24 86 . . Volleys Fired 130 | . 46 14 . 3 35 . 32 Largest 2 | . 2 2 . 2 2 . 1 Hottest 126 | . 80 80 . 75 126 . 90 Shots Fired 226 | . 92 28 . 6 67 . 33 Gun 164 | . 92 19 . 3 50 . . Cannon 59 | . . 9 . 3 14 . 33 Launcher 3 | . . . . . 3 . . Special . | . . . . . . . . Kinetic 112 | . 78 9 . 3 22 . . Thermal 99 | . 7 14 . 3 42 . 33 Explosive 3 | . . . . . 3 . . Electromagnetic 12 | . 7 5 . . . . . Robot Hit Streak 18 | . 15 5 . 5 18 . 12 Robot Miss Streak 7 | . 4 2 . 2 7 . 2 Penetration Max . | . . . . . . . . Secondary Targets 2 | . 1 . . . 1 . . Max Gunslinging Chain 1 | . 1 . . . 1 . . Shots Hit Robots 183 | . 63 20 . 3 49 12 36 Core Hits 77 | . 20 8 . 3 26 7 13 Critical Kills . | . . . . . . . . Critical Parts Destroyed . | . . . . . . . . Critical Strikes 6 | . . . . . 2 . 4 Burn 2 | . . . . . 2 . . Sever 4 | . . . . . . . 4 Melee Attacks 50 | . . . . . 4 22 24 Impact . | . . . . . . . . Slashing 50 | . . . . . 4 22 24 Piercing . | . . . . . . . . Sneak Attacks 7 | . . . . . . 5 2 Combat Hostiles . | . . . . . . . . Follow-up Attacks . | . . . . . . . . Damage Inflicted 4674 | . 820 308 . 57 1112 638 1739 Guns 1618 | . 772 141 . 22 683 . . Cannons 1304 | . . 114 . 35 186 . 969 Explosions 304 | . 48 53 . . 203 . . Melee 1443 | . . . . . 40 638 765 Ramming 5 | . . . . . . . 5 Kinetic 1152 | . 669 114 . 35 334 . . Thermal 1770 | . 90 154 . 22 535 . 969 Explosive 203 | . . . . . 203 . . Electromagnetic 101 | . 61 40 . . . . . Impact . | . . . . . . . . Slashing 1443 | . . . . . 40 638 765 Piercing . | . . . . . . . . Highest Corruption 9 | . . . . . . 2 9 Average Corruption 3 | . . . . . . 1 5 Corruption Purged . | . . . . . . . . Corruption Blocked . | . . . . . . . . Effects 23 | . . . . . . 4 19 Message Errors 6 | . . . . . . 2 4 Matter Fused 7 | . . . . . . 1 6 Heat Flow Errors 2 | . . . . . . . 2 Energy Discharges 3 | . . . . . . . 3 Data Loss (minor) 2 | . . . . . . . 2 Data Loss (major) 1 | . . . . . . . 1 Misfires 1 | . . . . . . . 1 Alerts 1 | . . . . . . 1 . Overload Shots 20 | . . . . . . . 20 Effects 1 | . . . . . . . 1 Energy Bleed 1 | . . . . . . . 1 Overflow Damage 134 | . . 3 . . . 60 71 Projectiles 40 | . . . . . . . 40 Explosions 3 | . . 3 . . . . . Melee 91 | . . . . . . 60 31 Knockbacks . | . . . . . . . . Impact . | . . . . . . . . Kinetic . | . . . . . . . . Secondary . | . . . . . . . . Self-Inflicted Damage 69 | . . 46 . . 21 . 2 Shots 2 | . . 1 . . 1 . . Rammed 1 | . . . . . . . 1 Targets Rammed 1 | . . . . . . . 1 Kicked . | . . . . . . . . Crushed . | . . . . . . . . Highest Temperature 513 | . 96 198 . 30 270 1 513 Average Temperature 98 | . 21 87 . 14 67 1 142 Received Heat Transfer 1246 | . 318 147 . . 243 6 532 Effects 5 | . . . . . . . 5 Shutdowns 2 | . . . . . . . 2 Energy Bleed 1 | . . . . . . . 1 Interference 2 | . . . . . . . 2 Siege Activations . | . . . . . . . . Robots Corrupted . | . . . . . . . . Combat Hostiles . | . . . . . . . . Parts Fried . | . . . . . . . . Impact Corruptions . | . . . . . . . . Robots Melted . | . . . . . . . . Combat Hostiles . | . . . . . . . . Parts Melted 6 | . . . . . 2 . 4 Heat Transferred 2657 | . 150 275 . 50 1345 . 837 Parts Sabotaged . | . . . . . . . . Parts Stolen . | . . . . . . . . Parts Stripped . | . . . . . . . . Power Chain Reactions 2 | . 1 1 . . . . . Alert | -11 -10 -10 -10 -9 -8 -7 -7 ------- Run | Yrd Mat Min Exi Min Mat Fac Sto Peak Influence 470 | . 263 74 . 70 309 271 470 Initial 140 | . . 40 . . . 140 70 Average 122 | . 127 23 . 26 164 166 281 Maximum Alert Level 2 | . 1 . . . 1 1 2 Low Security (%) 75 | 100 82 100 . 100 72 54 36 Level 1 19 | . 17 . . . 27 45 38 Level 2 4 | . . . . . . . 25 Level 3 . | . . . . . . . . Level 4 . | . . . . . . . . Level 5 . | . . . . . . . . High Security . | . . . . . . . . Max Security . | . . . . . . . . Squads Dispatched 12 | . 2 . . . 1 4 5 Investigation 2 | . . . . . . 2 . Extermination 2 | . . . . . . 1 1 Reinforcement 6 | . 2 . . . 1 1 2 Assault 2 | . . . . . . . 2 Garrison . | . . . . . . . . Intercept . | . . . . . . . . Searches Triggered . | . . . . . . . . Construction Impeded . | . . . . . . . . Haulers Reinforced . | . . . . . . . . Active Scanning Responses . | . . . . . . . . Cargo Convoy Interrupts . | . . . . . . . . Stealth | -11 -10 -10 -10 -9 -8 -7 -7 --------- Run | Yrd Mat Min Exi Min Mat Fac Sto Distress Signals 8 | . 1 . . . 5 . 2 Communications Jammed . | . . . . . . . . Distress Signals . | . . . . . . . . Times Spotted 95 | . 17 4 . 3 27 7 37 Peak Tracking Total 11 | . 4 2 . 2 7 2 11 Tactical Retreats 12 | . . . . . 4 2 6 Traps | -11 -10 -10 -10 -9 -8 -7 -7 ------- Run | Yrd Mat Min Exi Min Mat Fac Sto Traps Triggered 2 | . . . . . . 1 1 Indirectly . | . . . . . . . . Trap Hack Attempts . | . . . . . . . . Triggered . | . . . . . . . . Disarmed . | . . . . . . . . Reprogrammed . | . . . . . . . . Reused . | . . . . . . . . Traps Reconfigurated 6 | . . . . . . . 6 Traps Extracted . | . . . . . . . . Installed . | . . . . . . . . Triggered . | . . . . . . . . Machines | -11 -10 -10 -10 -9 -8 -7 -7 ---------- Run | Yrd Mat Min Exi Min Mat Fac Sto Machines Disabled 1 | . . . . . . . 1 Max in Single Turn 1 | . . . . . . . 1 Machines Repaired . | . . . . . . . . Machines Dismantled . | . . . . . . . . Machines Sabotaged . | . . . . . . . . Overloaded Fab Kills . | . . . . . . . . Hacking | -11 -10 -10 -10 -9 -8 -7 -7 --------- Run | Yrd Mat Min Exi Min Mat Fac Sto Machines Accessed 6 | . . . . . 1 5 . Terminals 4 | . . . . . 1 3 . Fabricators 1 | . . . . . . 1 . Repair Stations . | . . . . . . . . Recycling Units . | . . . . . . . . Scanalyzers 1 | . . . . . . 1 . Garrison Access . | . . . . . . . . Total Hacks 15 | . . . . . 1 14 . Successful 4 | . . . . . . 4 . Failed 11 | . . . . . 1 10 . Catastrophic 1 | . . . . . 1 . . Database Lockouts . | . . . . . . . . Manual 15 | . . . 1 . 2 11 1 Terminals 11 | . . . . . 1 10 . Fabricators 2 | . . . . . . 2 . Repair Stations . | . . . . . . . . Recycling Units . | . . . . . . . . Scanalyzers 2 | . . . . . . 2 . Garrison Access . | . . . . . . . . Terminal Hacks 1 | . . . . . . 1 . Registered Components 1 | . . . . . . 1 . Fabricator Hacks 1 | . . . . . . 1 . Network Status 1 | . . . . . . 1 . Repair Station Hacks . | . . . . . . . . Recycling Unit Hacks . | . . . . . . . . Scanalyzer 2 | . . . . . . 2 . Insert Component 1 | . . . . . . 1 . Analyze 1 | . . . . . . 1 . Garrison Access Hacks . | . . . . . . . . Unauthorized Hacks . | . . . . . . . . Terminals . | . . . . . . . . Fabricators . | . . . . . . . . Repair Stations . | . . . . . . . . Recycling Units . | . . . . . . . . Scanalyzers . | . . . . . . . . Garrison Access . | . . . . . . . . Data Cores Recovered . | . . . . . . . . Used . | . . . . . . . . Hacking Detections 4 | . . . . . 1 3 . Full Trace Events 2 | . . . . . . 2 . Feedback Events 1 | . . . . . . 1 . Corruption 1 | . . . . . . 1 . Feedback Blocked . | . . . . . . . . Robot Schematics Acquired . | . . . . . . . . Robots Built . | . . . . . . . . Authchips . | . . . . . . . . Time . | . . . . . . . . Total Robot Build Rating . | . . . . . . . . Part Schematics Acquired 1 | . . . . . . 1 . Parts Built . | . . . . . . . . Authchips . | . . . . . . . . Time . | . . . . . . . . Total Part Build Rating . | . . . . . . . . Parts Repaired . | . . . . . . . . Time . | . . . . . . . . Parts Recycled . | . . . . . . . . Recycled Matter . | . . . . . . . . Retrieved Matter . | . . . . . . . . Retrieved Components . | . . . . . . . . Parts Scanalyzed 1 | . . . . . . 1 . Part Schematics Acquired 1 | . . . . . . 1 . Parts Damaged . | . . . . . . . . Bothacking | -11 -10 -10 -10 -9 -8 -7 -7 ------------ Run | Yrd Mat Min Exi Min Mat Fac Sto Used RIF Installer . | . . . . . . . . Robots Hacked . | . . . . . . . . Non-combat . | . . . . . . . . Combat . | . . . . . . . . Robot Hacks Applied . | . . . . . . . . Relay Couplers Released . | . . . . . . . . Fabnet Peak Effective % . | . . . . . . . . Robots Rewired . | . . . . . . . . Allies Hacked . | . . . . . . . . Hacks Repelled . | . . . . . . . . Allies | -11 -10 -10 -10 -9 -8 -7 -7 -------- Run | Yrd Mat Min Exi Min Mat Fac Sto Total Allies 5 | . . . . 3 . . 2 Largest Group 3 | . . . . 3 3 . 2 Highest-Rated Group 62 | . . . . 40 40 . 62 Highest-Rated Ally 31 | . . . . 16 16 . 31 Total Orders 3 | . . . . 3 . . . AID 3 | . . . . 3 . . . Ally Attacks 21 | . . . . . 13 . 8 Total Damage 303 | . . . . . 137 . 166 Kills 2 | . . . . . 2 . . Allies Corrupted . | . . . . . . . . Allies Melted . | . . . . . . . . Intel | -11 -10 -10 -10 -9 -8 -7 -7 ------- Run | Yrd Mat Min Exi Min Mat Fac Sto Robot Analysis Total . | . . . . . . . . Derelict Logs Recovered 3 | . . 3 . . . . . Drone Launches . | . . . . . . . . Drone Recoveries . | . . . . . . . . Exploration | -11 -10 -10 -10 -9 -8 -7 -7 ------------- Run | Yrd Mat Min Exi Min Mat Fac Sto Turns Passed 5205 | 46 577 1314 424 602 701 713 828 Spaces Moved 4291 | 31 266 754 257 274 676 1463 570 Core 2 | 2 . . . . . . . Treads 1197 | 3 90 558 257 274 15 . . Legs . | . . . . . . . . Wheels 689 | 26 176 196 . . 291 . . Hover . | . . . . . . . . Flight 2403 | . . . . . 370 1463 570 Fastest Speed 26 | 50 100 115 160 160 29 26 26 Average Speed 81 | 102 153 151 160 203 64 26 26 Slowest Speed 240 | 160 240 240 160 240 240 26 97 Overloaded Moves . | . . . . . . . . Propulsion Burnouts . | . . . . . . . . Robots Hopped 3 | . . . . . . 1 2 Cave-ins Triggered 1 | . . . . . . . 1 Exploration Rate (%) 45 | 3 45 99 62 44 30 33 48 Regions Visited 7 Branch Regions 4 Pre-discovered Areas 2 | . . 1 . 1 . . . Known Exits Taken 2 | . . . . . 1 1 . Unknown Exits Taken 5 | 1 1 1 1 1 . . . Scrap Searched 1 | . . 1 . . . . . Spaces Dug 22 | . . . . . 2 10 10 Terrain Destroyed 70 | . 6 5 . . 35 10 14 Melee 12 | . . . . . 2 10 . Projectile 14 | . . . . . . . 14 AOE 44 | . 6 5 . . 33 . . Terrain Rammed . | . . . . . . . . Walls Destroyed . | . . . . . . . . Machines Disabled . | . . . . . . . . Actions | -11 -10 -10 -10 -9 -8 -7 -7 --------- Run | Yrd Mat Min Exi Min Mat Fac Sto Total 5673 | 42 342 899 270 314 866 1761 1179 Wait 1029 | . 12 120 . 37 96 247 517 Move 4279 | 30 265 753 256 273 675 1460 567 Hop 2 | . . . . . . 1 1 Pick Up 40 | 6 6 6 1 . 9 7 5 Fast Attach 29 | 6 2 . 6 . 8 5 2 Attach 31 | . 1 3 . . 14 4 9 Detach 9 | . . . . . 3 2 4 Swap 20 | . 4 1 . 1 7 5 2 Drop 39 | . 6 2 7 . 15 8 1 Fire 130 | . 46 14 . 3 35 . 32 Melee 50 | . . . . . 4 22 24 Ram 1 | . . . . . . . 1 Kick . | . . . . . . . . Crush . | . . . . . . . . Escape Stasis 14 | . . . . . . . 14 Rewire . | . . . . . . . . Trap . | . . . . . . . . Miscellaneous . | . . . . . . . . Route ------- -11/Scrapyard -10/Materials (discovered 3 exits: [*Mat] / [*Min x2]) -10/Mines (discovered 4 exits: [*Mat x2] / *Exi / [*Sub]) -10/Exiles -9/Mines -8/Materials (discovered 2 exits: *Fac x2) -7/Factory (discovered 2 exits: *Sto / [*Low]) -7/Storage History --------- Turn | Location | Event 28 | -11/Scrapyard | Discovered new exit (range 15) 47 | -11/Scrapyard | Entered Materials 125 | -10/Materials | Discovered new exit (range 4) 318 | -10/Materials | Build established: Mutant 462 | -10/Materials | Core integrity fell below 50% 504 | -10/Materials | Discovered new exit (range 3) 610 | -10/Materials | Discovered new exit (range 8) 624 | -10/Materials | Entered Mines 657 | -10/Mines | Learned location of Zion (-7) 726 | -10/Mines | Discovered new exit (range 14) 833 | -10/Mines | A weapon hastily lodged in a ceiling crevice suddenly fell to the ground 1028 | -10/Mines | Learned 8 Materials zone layouts 1044 | -10/Mines | Learned Materials stockpile data 1064 | -10/Mines | Received a Rocket Launcher from a helpful Derelict 1107 | -10/Mines | Discovered new exit (range 5) 1363 | -10/Mines | Discovered new exit (range 5) 1930 | -10/Mines | Deemed a non-threat by the Exiles lab entrance 1931 | -10/Mines | Discovered new exit (range 5) 1938 | -10/Mines | Entered Exiles 1982 | -10/Exiles | Met 8R-AWN 2010 | -10/Exiles | Met EX-HEX 2068 | -10/Exiles | Met EX-BIN 2090 | -10/Exiles | Aligned with FarCom system 2092 | -10/Exiles | Given EX-Vault access code 2130 | -10/Exiles | Opened EX-Vault 2152 | -10/Exiles | Found Prototype Device 2152 | -10/Exiles | Identified Trap Reconfigurator 2169 | -10/Exiles | Found Prototype Ballistic Gun 2169 | -10/Exiles | Identified AWS/Gauss 2184 | -10/Exiles | Found Prototype Storage 2184 | -10/Exiles | Identified Superbattery 2245 | -10/Exiles | Warned to stay clear of 0b10 Research branches 2288 | -10/Exiles | Met EX-DEC 2342 | -10/Exiles | Discovered new exit (range 14) 2362 | -10/Exiles | Left Exiles lab with Trap Reconfigurator 2362 | -10/Exiles | Entered Mines 2650 | -9/Mines | Build established: Skirmisher 2691 | -9/Mines | Assisted by bots powering up and referring to "LRC-V3" 2829 | -9/Mines | Learned location of Storage (-7) 2955 | -9/Mines | Discovered new exit (range 5) 2964 | -9/Mines | Entered Materials 2964 | -8/Materials | Accompanied by 3 allies 2964 | -8/Materials | Evolved 4 slots: Propulsion x1, Utility x3 2965 | -8/Materials | Identified exit to Factory 3078 | -8/Materials | Lost 3 allies 3665 | -8/Materials | Entered Factory 3665 | -7/Factory | Evolved 2 slots: Propulsion x1, Utility x1 3731 | -7/Factory | Discovered new exit (range 6) 4123 | -7/Factory | Build established: Hacker-Scout 4329 | -7/Factory | Discovered new exit (range 16) 4375 | -7/Factory | Identified exit to Storage 4378 | -7/Factory | Entered Storage 4405 | -7/Storage | Met a pair of Derelict thieves 4660 | -7/Storage | Crushed by falling debris 4828 | -7/Storage | Build established: Hacker-Sprinter 5172 | -7/Storage | Core integrity fell below 50% 5206 | -7/Storage | Self-destructed Last Messages --------------- 05185_ Field strength at 95. 05185_ Field strength at 90. 05186_ Stasis Trap reprogrammed. 05186_ Field strength at 85. 05187_ Field strength at 80. 05188_ Field strength at 75. 05189_ Field strength at 70. 05191_ Field strength at 65. 05192_ Field strength at 60. 05193_ Field strength at 55. 05194_ Field strength at 46. 05195_ Field strength at 41. 05196_ Field strength at 31. 05197_ Field strength at 26. 05198_ Field strength at 12. 05199_ Field strength at 7. 05201_ Stasis field depleted. 05201_ Mic. Nuclear Core destroyed. 05203_ Trap Reconfigurator destroyed. 05204_ U-05 Engineer builds a Wall. Map ----- +----------------------------------------------------+ | ?????????????????????????????????????????????????? | | ?????????????????????????????????????????????????? | | ?????????????????????????????????????????????????? | | ?????????????????????????????????????????????????? | | ?????????????????????????????????????????????????? | | ?????????????????????????????????????????????????? | | ?????????????????????????????????????????????????? | | ?????????????????????????????????????????????????? | | ?????????????????????????????????????????????????? | | ?????????????????????????????????????????????????? | | ??????????????????????????Y??????????????????????? | | ?????????????????????????????????????????????????? | | ?????????????????????????????????????????????????? | | ?????????????????????????????????????????????????? | | ########?????????????????????????????????????????? | | #?????????????????????????????????????????? | | #?????????????????????????????????????????? | | """" #?????????????????????????????????????????? | | ""??" ####?????????????#####????????????????????? | | ""???" # #?????????????# #??##????+#??????????? | | "???"" # ##???????????### #?? ?? #??????????? | | "??"" ###????????????#T# #? ? #??????????? | | """" #??????????????# # # #??????????? | | #??????????????" # # [ #??????????? | | ####"""#??????????????# + gg ! #??????????? | | ???## ##??????????????###@ # #??????????? | | ????# #?????????????????# k #???????????????? ?? | | ########????????????????# #?????????????? ? # | | #???????????????## ^^##???????????? ??# | | % ################# ^ g#########????? ?# | | """" / g g /? ? ? ## | | "??"" ####### w #??? ? ## | | "???"" ####### ######?### | | ""???" # # u ? ? | | ""??" # # #################+####?######## | | """" # "" # #?????????????# ############# | | # "" !# #?????????????? ?############ | | ######## """%# #??????????????? #???#?###?## | | #### ### | + #?????????????? ? ############ | | #?# ""# ###################### # | | #?# ""# + """ + | | """ #?# T"# g ############ """" " # | | """ #?# ""# #??##???#?## " "" " #== | | """ #?# ""############/#####????#### " "" " +*[ | | #?# #???????# !%! ###???#?# " """" # ! | | ######?#######???????# = ###?#?#?# """ # | | ?????????????????????# #?#???#?# # | | ?????????????????????# "#?#?#?### # | | ?????????????????????# ""####?##?########## | | ?????????????????????# T"#??##?##?########### | +----------------------------------------------------+ Best States ------------- Heat Dissipation 45 Energy Generation 15 Energy Capacity 250 Matter Stores 300 Matter Capacity 300 Sight Range 20 Robot Scan Range 14 Terrain Scan Range 16 Terrain Scan Density 210 ECM Strength 2 Jamming Range 12 Armor Coverage 300 Propulsion Shielding 33 Evasion (%) 72 Targeting Accuracy 5 Recoil Reduction 1 Offensive Hacking 10 Defensive Hacking 10 Item Schematics ----------------- Reaction Control System | -7/Factory | Scanalyzed Robot Schematics ------------------ None Fabricated ------------ Nothing Alien Tech Used ----------------- None Achievements -------------- None Challenges ------------ None Game ------ Seed ScatterRemoteCasing Manual? 0 Play Time 01:21:05 Cumulative 39.2 hours Start 2024.08.25 @ 20:33:06 End 2024.08.25 @ 22:28:49 Sessions 1 Manual Loads 0 Difficulty Rogue Special Mode None Game No. 27 Rogue 27 Adventurer 0 Explorer 0 Win Type - Total 0 Types 0/0/0/0/0/0/0/0/0 Lore% 14 Gallery% 27 Achievement% 22 Wizard Run 0 Options --------- Layout 1 ASCII 0 Keyboard 0 Movement Mouse Keybinds 0 Fullscreen 1 Font 48/Smallcaps Map View 50x35 Zoom Use 0% Tactical HUD 1 Map Filters NONE Filters NONE Steam 1 RUN: 0db70739-04ae-4c7c-938a-3c03d5f62d3f